[Event "Titled Tuesday Blitz June 21 Early 2022"]
[White "Rohith Krishna S"]
[Black "Tari, Aryan"]
[WhiteFideId "46617051"]
[BlackFideId "1510045"]
[WhiteElo "2117"]
[BlackElo "2567"]
[Result "0-1"]
[Round "11"]
[TimeControl "180+1"]
[Date "2022.06.21"]
[WhiteClock "0:00:02"]
[BlackClock "0:00:23"]

1. Nf3 {[%clk 0:03:00]}  c5 {[%clk 0:02:57]} 2. g3 {[%clk 0:03:00]}  Nc6 {[%clk 0:02:57]} 3. Bg2 {[%clk 0:03:01]}  g6 {[%clk 0:02:57]} 4. O-O {[%clk 0:03:01]}  Bg7 {[%clk 0:02:58]} 5. c4 {[%clk 0:03:02]}  e6 {[%clk 0:02:54]} 6. Nc3 {[%clk 0:03:02]}  Nge7 {[%clk 0:02:54]} 7. e3 {[%clk 0:03:00]}  O-O {[%clk 0:02:53]} 8. d4 {[%clk 0:02:57]}  cxd4 {[%clk 0:02:53]} 9. exd4 {[%clk 0:02:58]}  d5 {[%clk 0:02:52]} 10. cxd5 {[%clk 0:02:59]}  exd5 {[%clk 0:02:51]} 11. Bf4 {[%clk 0:02:48]}  h6 {[%clk 0:02:50]} 12. h4 {[%clk 0:02:45]}  Bg4 {[%clk 0:02:50]} 13. Qa4 {[%clk 0:02:25]}  Bxf3 {[%clk 0:02:45]} 14. Bxf3 {[%clk 0:02:26]}  Nxd4 {[%clk 0:02:45]} 15. Bg2 {[%clk 0:02:27]}  b5 {[%clk 0:02:40]} 16. Nxb5 {[%clk 0:02:22]}  Ne2+ {[%clk 0:02:40]} 17. Kh2 {[%clk 0:02:22]}  Nxf4 {[%clk 0:02:30]} 18. Qxf4 {[%clk 0:02:23]}  Bxb2 {[%clk 0:02:23]} 19. Rad1 {[%clk 0:02:23]}  Qb6 {[%clk 0:02:13]} 20. Nc7 {[%clk 0:02:15]}  Rad8 {[%clk 0:01:44]} 21. Nxd5 {[%clk 0:02:11]}  Nxd5 {[%clk 0:01:44]} 22. Rxd5 {[%clk 0:02:11]}  Kg7 {[%clk 0:01:33]} 23. Rfd1 {[%clk 0:02:06]}  Rxd5 {[%clk 0:01:13]} 24. Rxd5 {[%clk 0:02:07]}  Bf6 {[%clk 0:01:08]} 25. Rd6 {[%clk 0:02:00]}  Qb2 {[%clk 0:01:08]} 26. Ra6 {[%clk 0:02:00]}  Bd4 {[%clk 0:01:04]} 27. f3 {[%clk 0:01:19]}  Rd8 {[%clk 0:01:02]} 28. h5 {[%clk 0:01:18]}  Be5 {[%clk 0:00:58]} 29. Qg4 {[%clk 0:01:14]}  Rd2 {[%clk 0:00:42]} 30. Qh3 {[%clk 0:01:14]}  g5 {[%clk 0:00:38]} 31. Rxa7 {[%clk 0:01:11]}  Qd4 {[%clk 0:00:37]} 32. Ra8 {[%clk 0:00:32]}  Rd1 {[%clk 0:00:35]} 33. Qg4 {[%clk 0:00:32]}  Qg1+ {[%clk 0:00:33]} 34. Kh3 {[%clk 0:00:31]}  Rd2 {[%clk 0:00:34]} 35. Qe4 {[%clk 0:00:04]}  Qxg2+ {[%clk 0:00:33]} 36. Kg4 {[%clk 0:00:05]}  Qxg3+ {[%clk 0:00:33]} 37. Kf5 {[%clk 0:00:06]}  Rd5 {[%clk 0:00:26]} 38. f4 {[%clk 0:00:02]}  Qh3# {[%clk 0:00:23]} 0-1


[Site "https://www.chess.com"]

[Event "Titled Tuesday Blitz June 21 Early 2022"]
[White "Sadhwani, Raunak"]
[Black "Tan, Zhongyi"]
[WhiteFideId "35093487"]
[BlackFideId "8603642"]
[WhiteElo "2616"]
[BlackElo "2510"]
[Result "1-0"]
[Round "11"]
[TimeControl "180+1"]
[Date "2022.06.21"]
[WhiteClock "0:01:44"]
[BlackClock "0:00:09"]

1. d4 {[%clk 0:03:00]}  d5 {[%clk 0:02:58]} 2. Nf3 {[%clk 0:03:01]}  Nf6 {[%clk 0:02:57]} 3. c3 {[%clk 0:03:02]}  Bf5 {[%clk 0:02:53]} 4. Qb3 {[%clk 0:03:02]}  Qc8 {[%clk 0:02:47]} 5. Bf4 {[%clk 0:03:02]}  e6 {[%clk 0:02:46]} 6. e3 {[%clk 0:03:03]}  Bd6 {[%clk 0:02:45]} 7. Nbd2 {[%clk 0:03:02]}  O-O {[%clk 0:02:44]} 8. Be2 {[%clk 0:02:57]}  Nbd7 {[%clk 0:02:41]} 9. Bxd6 {[%clk 0:02:56]}  cxd6 {[%clk 0:02:41]} 10. O-O {[%clk 0:02:57]}  h6 {[%clk 0:02:39]} 11. Rfc1 {[%clk 0:02:57]}  Ne4 {[%clk 0:02:34]} 12. a4 {[%clk 0:02:57]}  Qc7 {[%clk 0:02:29]} 13. a5 {[%clk 0:02:56]}  Rfc8 {[%clk 0:02:28]} 14. Nxe4 {[%clk 0:02:56]}  Bxe4 {[%clk 0:02:25]} 15. Nd2 {[%clk 0:02:57]}  Bg6 {[%clk 0:02:25]} 16. Qa3 {[%clk 0:02:58]}  a6 {[%clk 0:02:22]} 17. b3 {[%clk 0:02:57]}  Nf6 {[%clk 0:02:13]} 18. c4 {[%clk 0:02:58]}  Qd7 {[%clk 0:02:12]} 19. Bf3 {[%clk 0:02:52]}  Be4 {[%clk 0:01:56]} 20. Nxe4 {[%clk 0:02:44]}  dxe4 {[%clk 0:01:55]} 21. Be2 {[%clk 0:02:44]}  d5 {[%clk 0:01:54]} 22. c5 {[%clk 0:02:45]}  Ne8 {[%clk 0:01:41]} 23. Qa4 {[%clk 0:02:36]}  Qe7 {[%clk 0:01:28]} 24. c6 {[%clk 0:02:29]}  Nd6 {[%clk 0:01:23]} 25. h3 {[%clk 0:02:27]}  Qc7 {[%clk 0:01:10]} 26. Rc5 {[%clk 0:02:13]}  bxc6 {[%clk 0:01:07]} 27. Rac1 {[%clk 0:02:14]}  Nb5 {[%clk 0:01:00]} 28. Rxc6 {[%clk 0:02:07]}  Qxc6 {[%clk 0:00:47]} 29. Rxc6 {[%clk 0:02:08]}  Rxc6 {[%clk 0:00:47]} 30. Bxb5 {[%clk 0:02:08]}  axb5 {[%clk 0:00:47]} 31. Qxb5 {[%clk 0:02:09]}  Rc1+ {[%clk 0:00:46]} 32. Kh2 {[%clk 0:02:09]}  h5 {[%clk 0:00:42]} 33. h4 {[%clk 0:02:08]}  Ra1 {[%clk 0:00:36]} 34. b4 {[%clk 0:02:08]}  Rc8 {[%clk 0:00:35]} 35. Kg3 {[%clk 0:02:03]}  Rc2 {[%clk 0:00:31]} 36. Qe8+ {[%clk 0:02:02]}  Kh7 {[%clk 0:00:30]} 37. Qxf7 {[%clk 0:02:02]}  Raa2 {[%clk 0:00:17]} 38. Qxh5+ {[%clk 0:02:03]}  Kg8 {[%clk 0:00:17]} 39. Qe8+ {[%clk 0:02:03]}  Kh7 {[%clk 0:00:17]} 40. Qf7 {[%clk 0:02:03]}  Rcb2 {[%clk 0:00:15]} 41. h5 {[%clk 0:02:02]}  Rxb4 {[%clk 0:00:13]} 42. Qg6+ {[%clk 0:02:01]}  Kh8 {[%clk 0:00:12]} 43. Qe8+ {[%clk 0:01:45]}  Kh7 {[%clk 0:00:12]} 44. Qxe6 {[%clk 0:01:43]}  Rxa5 {[%clk 0:00:11]} 45. Qf5+ {[%clk 0:01:44]}  Kh8 {[%clk 0:00:09]} 46. Qf8+ {[%clk 0:01:43]}  Kh7 {[%clk 0:00:09]} 47. Qxb4 {[%clk 0:01:44]} 1-0


[Site "https://www.chess.com"]

[Event "Titled Tuesday Blitz June 21 Early 2022"]
[White "Samaganova, Aleksandra"]
[Black "Vidonyak, Roman"]
[WhiteFideId "13800221"]
[BlackFideId "14100622"]
[WhiteElo "1864"]
[BlackElo "2370"]
[Result "1-0"]
[Round "11"]
[TimeControl "180+1"]
[Date "2022.06.22"]
[WhiteClock "0:00:06"]
[BlackClock "0:00:02"]

1. c4 {[%clk 0:03:00]}  e5 {[%clk 0:02:58]} 2. Nc3 {[%clk 0:03:00]}  Bb4 {[%clk 0:02:57]} 3. Qc2 {[%clk 0:02:59]}  Nf6 {[%clk 0:02:44]} 4. Nf3 {[%clk 0:02:58]}  d6 {[%clk 0:02:42]} 5. e3 {[%clk 0:02:57]}  Nc6 {[%clk 0:02:40]} 6. Be2 {[%clk 0:02:56]}  O-O {[%clk 0:02:41]} 7. O-O {[%clk 0:02:56]}  Re8 {[%clk 0:02:31]} 8. d3 {[%clk 0:02:53]}  h6 {[%clk 0:02:29]} 9. a3 {[%clk 0:02:48]}  Bxc3 {[%clk 0:02:28]} 10. Qxc3 {[%clk 0:02:48]}  e4 {[%clk 0:02:29]} 11. Nd4 {[%clk 0:02:45]}  Ne5 {[%clk 0:02:23]} 12. b4 {[%clk 0:02:35]}  c5 {[%clk 0:02:08]} 13. Nb3 {[%clk 0:02:21]}  cxb4 {[%clk 0:01:53]} 14. axb4 {[%clk 0:02:20]}  d5 {[%clk 0:01:45]} 15. c5 {[%clk 0:02:11]}  exd3 {[%clk 0:01:31]} 16. Bxd3 {[%clk 0:02:10]}  Nxd3 {[%clk 0:01:30]} 17. Qxd3 {[%clk 0:02:10]}  Ne4 {[%clk 0:01:26]} 18. Bb2 {[%clk 0:02:03]}  Bf5 {[%clk 0:01:22]} 19. Qd4 {[%clk 0:01:57]}  Nf6 {[%clk 0:01:18]} 20. Rfd1 {[%clk 0:01:47]}  Bc2 {[%clk 0:01:17]} 21. Na5 {[%clk 0:01:31]}  Bxd1 {[%clk 0:01:13]} 22. Rxd1 {[%clk 0:01:30]}  Qc7 {[%clk 0:01:08]} 23. Qh4 {[%clk 0:01:21]}  Re6 {[%clk 0:01:02]} 24. h3 {[%clk 0:01:15]}  Rd8 {[%clk 0:01:01]} 25. Rd4 {[%clk 0:01:05]}  b6 {[%clk 0:01:01]} 26. Nb3 {[%clk 0:01:00]}  Ne4 {[%clk 0:00:55]} 27. f3 {[%clk 0:00:52]}  bxc5 {[%clk 0:00:49]} 28. bxc5 {[%clk 0:00:46]}  Nf6 {[%clk 0:00:44]} 29. Bc3 {[%clk 0:00:43]}  Rxe3 {[%clk 0:00:39]} 30. Ba5 {[%clk 0:00:40]}  Qe7 {[%clk 0:00:14]} 31. Bxd8 {[%clk 0:00:37]}  Qxd8 {[%clk 0:00:10]} 32. Rb4 {[%clk 0:00:34]}  Qe8 {[%clk 0:00:09]} 33. Nd4 {[%clk 0:00:24]}  Re1+ {[%clk 0:00:09]} 34. Kh2 {[%clk 0:00:24]}  Qe5+ {[%clk 0:00:09]} 35. f4 {[%clk 0:00:24]}  Qe3 {[%clk 0:00:08]} 36. Nf3 {[%clk 0:00:14]}  Ne4 {[%clk 0:00:06]} 37. Qxe1 {[%clk 0:00:13]}  Qxf4+ {[%clk 0:00:05]} 38. Kg1 {[%clk 0:00:13]}  Qf5 {[%clk 0:00:02]} 39. Rb8+ {[%clk 0:00:10]}  Kh7 {[%clk 0:00:02]} 40. c6 {[%clk 0:00:06]} 1-0


[Site "https://www.chess.com"]

[Event "Titled Tuesday Blitz June 21 Early 2022"]
[White "Samsonkin, Artiom"]
[Black "Harvey, Marcus R"]
[WhiteFideId "13503111"]
[BlackFideId "400092"]
[WhiteElo "2513"]
[BlackElo "2485"]
[Result "0-1"]
[Round "11"]
[TimeControl "180+1"]
[Date "2022.06.21"]
[WhiteClock "0:00:01"]
[BlackClock "0:01:18"]

1. d4 {[%clk 0:02:51]}  Nf6 {[%clk 0:03:00]} 2. Bf4 {[%clk 0:02:51]}  d5 {[%clk 0:03:00]} 3. e3 {[%clk 0:02:52]}  e6 {[%clk 0:03:00]} 4. Nf3 {[%clk 0:02:52]}  Bd6 {[%clk 0:03:01]} 5. Bg3 {[%clk 0:02:52]}  O-O {[%clk 0:03:01]} 6. Nbd2 {[%clk 0:02:51]}  c5 {[%clk 0:03:02]} 7. c3 {[%clk 0:02:51]}  Qc7 {[%clk 0:03:02]} 8. Bxd6 {[%clk 0:02:17]}  Qxd6 {[%clk 0:03:02]} 9. Ne5 {[%clk 0:02:18]}  Nbd7 {[%clk 0:03:01]} 10. f4 {[%clk 0:02:18]}  Ne4 {[%clk 0:02:57]} 11. Nxe4 {[%clk 0:02:06]}  dxe4 {[%clk 0:02:57]} 12. Nxd7 {[%clk 0:02:07]}  Bxd7 {[%clk 0:02:55]} 13. dxc5 {[%clk 0:02:08]}  Qxc5 {[%clk 0:02:48]} 14. Qd4 {[%clk 0:01:56]}  Rac8 {[%clk 0:02:32]} 15. Qxc5 {[%clk 0:01:41]}  Rxc5 {[%clk 0:02:32]} 16. O-O-O {[%clk 0:01:41]}  Bc6 {[%clk 0:02:30]} 17. Be2 {[%clk 0:01:22]}  f6 {[%clk 0:02:30]} 18. Rd6 {[%clk 0:01:15]}  Kf7 {[%clk 0:02:30]} 19. Kc2 {[%clk 0:01:05]}  Ke7 {[%clk 0:02:30]} 20. Rd2 {[%clk 0:01:04]}  a5 {[%clk 0:02:27]} 21. Rhd1 {[%clk 0:00:58]}  Bd5 {[%clk 0:02:27]} 22. f5 {[%clk 0:00:44]}  Rfc8 {[%clk 0:02:01]} 23. Rd4 {[%clk 0:00:38]}  R8c7 {[%clk 0:01:50]} 24. Bg4 {[%clk 0:00:25]}  Bxa2 {[%clk 0:01:32]} 25. fxe6 {[%clk 0:00:22]}  f5 {[%clk 0:01:31]} 26. Rd7+ {[%clk 0:00:20]}  Kxe6 {[%clk 0:01:29]} 27. Rxc7 {[%clk 0:00:07]}  Rxc7 {[%clk 0:01:29]} 28. Be2 {[%clk 0:00:06]}  a4 {[%clk 0:01:28]} 29. Rd4 {[%clk 0:00:05]}  Bb3+ {[%clk 0:01:28]} 30. Kd2 {[%clk 0:00:06]}  Rd7 {[%clk 0:01:22]} 31. Bb5 {[%clk 0:00:01]}  Rd5 {[%clk 0:01:18]} 0-1


[Site "https://www.chess.com"]

[Event "Titled Tuesday Blitz June 21 Early 2022"]
[White "Samunenkov, Ihor"]
[Black "Jia, Haoxiang"]
[WhiteFideId "14187086"]
[BlackFideId "8602999"]
[WhiteElo "2409"]
[BlackElo "2611"]
[Result "0-1"]
[Round "11"]
[TimeControl "180+1"]
[Date "2022.06.21"]
[WhiteClock "0:00:03"]
[BlackClock "0:00:19"]

1. e4 {[%clk 0:03:00]}  c5 {[%clk 0:02:58]} 2. Nf3 {[%clk 0:03:00]}  d6 {[%clk 0:02:58]} 3. d4 {[%clk 0:03:01]}  cxd4 {[%clk 0:02:58]} 4. Nxd4 {[%clk 0:03:02]}  Nf6 {[%clk 0:02:59]} 5. Nc3 {[%clk 0:03:02]}  g6 {[%clk 0:02:59]} 6. Be3 {[%clk 0:03:01]}  Bg7 {[%clk 0:03:00]} 7. f3 {[%clk 0:03:01]}  O-O {[%clk 0:03:00]} 8. Qd2 {[%clk 0:02:59]}  Nc6 {[%clk 0:03:00]} 9. O-O-O {[%clk 0:03:00]}  d5 {[%clk 0:02:58]} 10. exd5 {[%clk 0:03:00]}  Nxd5 {[%clk 0:02:58]} 11. Nxc6 {[%clk 0:03:00]}  bxc6 {[%clk 0:02:58]} 12. Bd4 {[%clk 0:03:01]}  Bxd4 {[%clk 0:02:58]} 13. Qxd4 {[%clk 0:03:02]}  Qb6 {[%clk 0:02:58]} 14. Na4 {[%clk 0:02:51]}  Qc7 {[%clk 0:02:58]} 15. Nc5 {[%clk 0:02:05]}  Rd8 {[%clk 0:02:49]} 16. c4 {[%clk 0:01:40]}  Bf5 {[%clk 0:02:31]} 17. cxd5 {[%clk 0:01:29]}  Rxd5 {[%clk 0:01:45]} 18. Qe3 {[%clk 0:01:28]}  Qa5 {[%clk 0:01:26]} 19. Rxd5 {[%clk 0:01:02]}  cxd5 {[%clk 0:01:27]} 20. g4 {[%clk 0:01:01]}  d4 {[%clk 0:01:13]} 21. Qxe7 {[%clk 0:00:56]}  Be6 {[%clk 0:00:52]} 22. Ba6 {[%clk 0:00:22]}  Qxa2 {[%clk 0:00:46]} 23. Nxe6 {[%clk 0:00:19]}  Qxa6 {[%clk 0:00:41]} 24. Nc7 {[%clk 0:00:09]}  Rc8 {[%clk 0:00:41]} 25. Kb1 {[%clk 0:00:09]}  Qd3+ {[%clk 0:00:38]} 26. Ka1 {[%clk 0:00:09]}  Qc4 {[%clk 0:00:33]} 27. Ne8 {[%clk 0:00:06]}  Qa4+ {[%clk 0:00:32]} 28. Kb1 {[%clk 0:00:06]}  Rxe8 {[%clk 0:00:26]} 29. Qd6 {[%clk 0:00:06]}  Qc4 {[%clk 0:00:18]} 30. Rc1 {[%clk 0:00:05]}  Qd3+ {[%clk 0:00:18]} 31. Ka1 {[%clk 0:00:02]}  Qxf3 {[%clk 0:00:16]} 32. Qxd4 {[%clk 0:00:02]}  Qe4 {[%clk 0:00:14]} 33. Qxe4 {[%clk 0:00:01]}  Rxe4 {[%clk 0:00:14]} 34. g5 {[%clk 0:00:02]}  Kg7 {[%clk 0:00:14]} 35. Rc7 {[%clk 0:00:02]}  a5 {[%clk 0:00:14]} 36. Rc5 {[%clk 0:00:02]}  a4 {[%clk 0:00:14]} 37. Ka2 {[%clk 0:00:01]}  Rh4 {[%clk 0:00:15]} 38. Ra5 {[%clk 0:00:01]}  Rxh2 {[%clk 0:00:15]} 39. Rxa4 {[%clk 0:00:02]}  Rg2 {[%clk 0:00:14]} 40. Ra5 {[%clk 0:00:02]}  h5 {[%clk 0:00:14]} 41. gxh6+ {[%clk 0:00:03]}  Kxh6 {[%clk 0:00:15]} 42. Ka3 {[%clk 0:00:03]}  g5 {[%clk 0:00:16]} 43. b4 {[%clk 0:00:04]}  g4 {[%clk 0:00:16]} 44. b5 {[%clk 0:00:05]}  Rg1 {[%clk 0:00:17]} 45. Ra8 {[%clk 0:00:03]}  Ra1+ {[%clk 0:00:16]} 46. Kb4 {[%clk 0:00:02]}  Rxa8 {[%clk 0:00:17]} 47. b6 {[%clk 0:00:03]}  Rb8 {[%clk 0:00:17]} 48. Kc5 {[%clk 0:00:03]}  g3 {[%clk 0:00:18]} 49. b7 {[%clk 0:00:04]}  g2 {[%clk 0:00:18]} 50. Kc6 {[%clk 0:00:04]}  Rxb7 {[%clk 0:00:18]} 51. Kxb7 {[%clk 0:00:02]}  g1=Q {[%clk 0:00:19]} 52. Ka8 {[%clk 0:00:03]}  Qb1 {[%clk 0:00:19]} 0-1


[Site "https://www.chess.com"]

[Event "Titled Tuesday Blitz June 21 Early 2022"]
[White "Sanchez, Robert"]
[Black "Piliczewski, Bogusz"]
[WhiteFideId "2034360"]
[BlackFideId "1104144"]
[WhiteElo "1992"]
[BlackElo "1896"]
[Result "1-0"]
[Round "11"]
[TimeControl "180+1"]
[Date "2022.06.22"]
[WhiteClock "0:00:56"]
[BlackClock "0:00:02"]

1. e4 {[%clk 0:03:00]}  c6 {[%clk 0:02:52]} 2. d4 {[%clk 0:02:53]}  d5 {[%clk 0:02:52]} 3. e5 {[%clk 0:02:54]}  c5 {[%clk 0:02:52]} 4. Nf3 {[%clk 0:02:54]}  Nc6 {[%clk 0:02:50]} 5. dxc5 {[%clk 0:02:52]}  Bg4 {[%clk 0:02:49]} 6. Bb5 {[%clk 0:02:49]}  e6 {[%clk 0:02:48]} 7. b4 {[%clk 0:02:49]}  a5 {[%clk 0:02:36]} 8. c3 {[%clk 0:02:48]}  Qc7 {[%clk 0:02:27]} 9. Bf4 {[%clk 0:02:45]}  g5 {[%clk 0:02:10]} 10. Bg3 {[%clk 0:02:41]}  h5 {[%clk 0:02:09]} 11. h3 {[%clk 0:02:41]}  Bxf3 {[%clk 0:02:05]} 12. Qxf3 {[%clk 0:02:41]}  g4 {[%clk 0:01:52]} 13. Qe2 {[%clk 0:02:25]}  h4 {[%clk 0:01:45]} 14. Bf4 {[%clk 0:02:24]}  f5 {[%clk 0:01:32]} 15. hxg4 {[%clk 0:02:20]}  Ne7 {[%clk 0:01:11]} 16. gxf5 {[%clk 0:02:07]}  Nxf5 {[%clk 0:01:10]} 17. Nd2 {[%clk 0:02:04]}  Bh6 {[%clk 0:01:02]} 18. Bxh6 {[%clk 0:02:01]}  Rxh6 {[%clk 0:01:03]} 19. Nf3 {[%clk 0:01:51]}  Ke7 {[%clk 0:00:54]} 20. Bd3 {[%clk 0:01:24]}  Rf8 {[%clk 0:00:42]} 21. Bxf5 {[%clk 0:01:22]}  Rxf5 {[%clk 0:00:41]} 22. O-O {[%clk 0:01:17]}  Nxe5 {[%clk 0:00:37]} 23. Nxe5 {[%clk 0:01:17]}  Rxe5 {[%clk 0:00:33]} 24. Qg4 {[%clk 0:01:17]}  Rh7 {[%clk 0:00:15]} 25. Rae1 {[%clk 0:01:13]}  h3 {[%clk 0:00:05]} 26. gxh3 {[%clk 0:00:58]}  Rhh5 {[%clk 0:00:02]} 27. f4 {[%clk 0:00:56]} 1-0


[Site "https://www.chess.com"]

[Event "Titled Tuesday Blitz June 21 Early 2022"]
[White "Sethuraman, S.P."]
[Black "Papasimakopoulos, Alexandros"]
[WhiteFideId "5021596"]
[BlackFideId "4244125"]
[WhiteElo "2473"]
[BlackElo "2340"]
[Result "1-0"]
[Round "11"]
[TimeControl "180+1"]
[Date "2022.06.21"]
[WhiteClock "0:00:14"]
[BlackClock "0:00:38"]

1. d4 {[%clk 0:03:00]}  f5 {[%clk 0:02:56]} 2. Nc3 {[%clk 0:02:57]}  d5 {[%clk 0:02:55]} 3. Bf4 {[%clk 0:02:53]}  a6 {[%clk 0:02:55]} 4. e3 {[%clk 0:02:52]}  Nf6 {[%clk 0:02:56]} 5. Nf3 {[%clk 0:02:50]}  e6 {[%clk 0:02:55]} 6. Bd3 {[%clk 0:02:45]}  c5 {[%clk 0:02:55]} 7. dxc5 {[%clk 0:02:43]}  Bxc5 {[%clk 0:02:56]} 8. Ne2 {[%clk 0:02:41]}  Nc6 {[%clk 0:02:54]} 9. O-O {[%clk 0:02:34]}  b5 {[%clk 0:02:53]} 10. a4 {[%clk 0:02:33]}  b4 {[%clk 0:02:52]} 11. c4 {[%clk 0:02:33]}  bxc3 {[%clk 0:02:51]} 12. Nxc3 {[%clk 0:02:30]}  Bd6 {[%clk 0:02:49]} 13. Rc1 {[%clk 0:02:25]}  e5 {[%clk 0:02:38]} 14. Bg5 {[%clk 0:02:20]}  Nb4 {[%clk 0:02:37]} 15. Bb1 {[%clk 0:02:11]}  Be6 {[%clk 0:02:32]} 16. Bxf6 {[%clk 0:01:59]}  Qxf6 {[%clk 0:02:18]} 17. e4 {[%clk 0:01:58]}  d4 {[%clk 0:01:54]} 18. exf5 {[%clk 0:01:57]}  Bxf5 {[%clk 0:01:54]} 19. Ne4 {[%clk 0:01:40]}  Bxe4 {[%clk 0:01:45]} 20. Bxe4 {[%clk 0:01:41]}  Rd8 {[%clk 0:01:42]} 21. Qb3 {[%clk 0:01:39]}  Qf7 {[%clk 0:01:40]} 22. Rc4 {[%clk 0:01:33]}  a5 {[%clk 0:01:34]} 23. Ng5 {[%clk 0:01:19]}  Qf4 {[%clk 0:01:27]} 24. h4 {[%clk 0:00:26]}  Qxh4 {[%clk 0:01:19]} 25. Rc7 {[%clk 0:00:24]}  Qh5 {[%clk 0:00:38]} 26. Qe6+ {[%clk 0:00:22]}  Kf8 {[%clk 0:00:39]} 27. Rf7+ {[%clk 0:00:22]}  Kg8 {[%clk 0:00:39]} 28. Rf6+ {[%clk 0:00:21]}  Qf7 {[%clk 0:00:38]} 29. Qxf7# {[%clk 0:00:14]} 1-0


[Site "https://www.chess.com"]

[Event "Titled Tuesday Blitz June 21 Early 2022"]
[White "Shuvalova, Polina"]
[Black "Sapunov, Evgeny"]
[WhiteFideId "24171760"]
[BlackFideId "4126661"]
[WhiteElo "2330"]
[BlackElo "2470"]
[Result "0-1"]
[Round "11"]
[TimeControl "180+1"]
[Date "2022.06.21"]
[WhiteClock "0:00:02"]
[BlackClock "0:00:02"]

1. d4 {[%clk 0:03:00]}  Nf6 {[%clk 0:02:58]} 2. Nc3 {[%clk 0:03:01]}  d5 {[%clk 0:02:57]} 3. Bg5 {[%clk 0:03:01]}  e6 {[%clk 0:02:56]} 4. e4 {[%clk 0:03:01]}  Bb4 {[%clk 0:02:56]} 5. e5 {[%clk 0:03:00]}  h6 {[%clk 0:02:56]} 6. Bd2 {[%clk 0:02:56]}  Bxc3 {[%clk 0:02:55]} 7. bxc3 {[%clk 0:02:56]}  Ne4 {[%clk 0:02:55]} 8. Bd3 {[%clk 0:02:56]}  Nxd2 {[%clk 0:02:45]} 9. Qxd2 {[%clk 0:02:55]}  c5 {[%clk 0:02:46]} 10. Ne2 {[%clk 0:02:54]}  Qa5 {[%clk 0:02:45]} 11. dxc5 {[%clk 0:02:38]}  Nd7 {[%clk 0:02:43]} 12. O-O {[%clk 0:02:34]}  Nxe5 {[%clk 0:02:37]} 13. Nf4 {[%clk 0:02:33]}  Qxc5 {[%clk 0:02:33]} 14. Nh5 {[%clk 0:02:32]}  O-O {[%clk 0:02:28]} 15. Kh1 {[%clk 0:02:26]}  Nxd3 {[%clk 0:02:13]} 16. cxd3 {[%clk 0:02:25]}  Bd7 {[%clk 0:02:12]} 17. f4 {[%clk 0:02:11]}  Rac8 {[%clk 0:02:04]} 18. Rac1 {[%clk 0:02:11]}  f6 {[%clk 0:01:56]} 19. Rf3 {[%clk 0:02:07]}  Be8 {[%clk 0:01:54]} 20. Ng3 {[%clk 0:02:07]}  Bf7 {[%clk 0:01:49]} 21. h3 {[%clk 0:02:06]}  Rc7 {[%clk 0:01:47]} 22. d4 {[%clk 0:02:03]}  Qd6 {[%clk 0:01:43]} 23. Re1 {[%clk 0:01:55]}  Re8 {[%clk 0:01:34]} 24. Kh2 {[%clk 0:01:36]}  Rce7 {[%clk 0:01:32]} 25. Qf2 {[%clk 0:01:33]}  Bg6 {[%clk 0:01:27]} 26. Rfe3 {[%clk 0:01:31]}  Bh7 {[%clk 0:01:24]} 27. Kh1 {[%clk 0:01:31]}  b6 {[%clk 0:01:23]} 28. Nh5 {[%clk 0:01:31]}  Be4 {[%clk 0:01:20]} 29. Ng3 {[%clk 0:01:28]}  f5 {[%clk 0:01:20]} 30. c4 {[%clk 0:01:16]}  Kh7 {[%clk 0:01:14]} 31. Kh2 {[%clk 0:01:09]}  g6 {[%clk 0:01:13]} 32. Kh1 {[%clk 0:01:08]}  Rc7 {[%clk 0:01:10]} 33. cxd5 {[%clk 0:00:51]}  exd5 {[%clk 0:01:10]} 34. Nf1 {[%clk 0:00:43]}  Rec8 {[%clk 0:01:09]} 35. R1e2 {[%clk 0:00:42]}  Qb4 {[%clk 0:01:07]} 36. Rg3 {[%clk 0:00:40]}  Rc2 {[%clk 0:01:02]} 37. Ne3 {[%clk 0:00:35]}  Rxe2 {[%clk 0:01:01]} 38. Qxe2 {[%clk 0:00:36]}  Qxd4 {[%clk 0:01:01]} 39. h4 {[%clk 0:00:35]}  h5 {[%clk 0:00:55]} 40. Qb5 {[%clk 0:00:34]}  Rc7 {[%clk 0:00:51]} 41. Qe8 {[%clk 0:00:34]}  Qf6 {[%clk 0:00:52]} 42. Rg5 {[%clk 0:00:31]}  d4 {[%clk 0:00:50]} 43. Nf1 {[%clk 0:00:29]}  d3 {[%clk 0:00:47]} 44. Nd2 {[%clk 0:00:28]}  Bc6 {[%clk 0:00:44]} 45. Qb8 {[%clk 0:00:26]}  Re7 {[%clk 0:00:42]} 46. Kh2 {[%clk 0:00:25]}  Rd7 {[%clk 0:00:38]} 47. Qc8 {[%clk 0:00:23]}  Qd6 {[%clk 0:00:36]} 48. Rg3 {[%clk 0:00:22]}  Re7 {[%clk 0:00:35]} 49. Qf8 {[%clk 0:00:21]}  Rd7 {[%clk 0:00:30]} 50. Qc8 {[%clk 0:00:21]}  Qf6 {[%clk 0:00:24]} 51. Rg5 {[%clk 0:00:19]}  Re7 {[%clk 0:00:24]} 52. Qd8 {[%clk 0:00:19]}  Bb5 {[%clk 0:00:19]} 53. Qd5 {[%clk 0:00:18]}  Ba6 {[%clk 0:00:18]} 54. a4 {[%clk 0:00:18]}  Qe6 {[%clk 0:00:16]} 55. Qd8 {[%clk 0:00:17]}  Rd7 {[%clk 0:00:16]} 56. Qf8 {[%clk 0:00:16]}  Qd6 {[%clk 0:00:15]} 57. Qe8 {[%clk 0:00:13]}  Qxf4+ {[%clk 0:00:14]} 58. g3 {[%clk 0:00:12]}  Qd6 {[%clk 0:00:13]} 59. Rxg6 {[%clk 0:00:10]}  Qxg6 {[%clk 0:00:12]} 60. Qxd7+ {[%clk 0:00:11]}  Kh6 {[%clk 0:00:13]} 61. Qxa7 {[%clk 0:00:10]}  Bc8 {[%clk 0:00:10]} 62. Qc7 {[%clk 0:00:08]}  Qe6 {[%clk 0:00:10]} 63. Qf4+ {[%clk 0:00:08]}  Kg6 {[%clk 0:00:11]} 64. Nf3 {[%clk 0:00:07]}  Qe2+ {[%clk 0:00:10]} 65. Kh3 {[%clk 0:00:08]}  Bb7 {[%clk 0:00:09]} 66. Qd6+ {[%clk 0:00:05]}  Kf7 {[%clk 0:00:07]} 67. Qc7+ {[%clk 0:00:04]}  Qe7 {[%clk 0:00:08]} 68. Ng5+ {[%clk 0:00:04]}  Kf6 {[%clk 0:00:08]} 69. Qc3+ {[%clk 0:00:04]}  Kg6 {[%clk 0:00:08]} 70. Qxd3 {[%clk 0:00:04]}  Be4 {[%clk 0:00:06]} 71. Qe3 {[%clk 0:00:04]}  Qc5 {[%clk 0:00:04]} 72. Qd2 {[%clk 0:00:03]}  Bd5 {[%clk 0:00:03]} 73. Qe2 {[%clk 0:00:01]}  Qc4 {[%clk 0:00:02]} 74. Qe8+ {[%clk 0:00:01]}  Kf6 {[%clk 0:00:02]} 75. Qd8+ {[%clk 0:00:01]}  Ke5 {[%clk 0:00:02]} 76. Qh8+ {[%clk 0:00:01]}  Kd6 {[%clk 0:00:02]} 77. Qxh5 {[%clk 0:00:02]}  Qf1+ {[%clk 0:00:02]} 0-1


[Site "https://www.chess.com"]